bitfinex/quotes_SOLUSD_20250416
["timestamp","ask_amount","ask_price","bid_price","bid_amount"]
[1744821782619,35.38149491,127.53,127.52,12.14]
[1744821783025,35.38149491,127.53,127.48,12.14]
[1744821783214,35.38149491,127.5,127.48,12.14]
[1744821783417,35.38149491,127.5,127.49,0.28432314]
[1744821784021,35.38149491,127.5,127.48,12.14]
[1744821784236,35.38149491,127.49,127.48,12.42432314]
[1744821784436,35.38149491,127.49,127.48,12.14]
[1744821785034,35.38149491,127.5,127.48,12.14]
[1744821785246,35.38149491,127.5,127.48,19.98416432]
[1744821785461,35.38149491,127.51,127.48,19.98416432]
[1744821785617,118.18149491,127.52,127.49,0.28432314]
[1744821786250,82.8,127.52,127.49,0.28432314]
[1744821786539,35.38149491,127.51,127.49,0.28432314]
[1744821787238,35.38149491,127.51,127.49,8.12793773]
[1744821787435,118.18149491,127.52,127.49,8.12793773]
[1744821787753,35.38149491,127.51,127.49,0.28432314]
[1744821788243,35.38149491,127.51,127.49,8.12806081]
[1744821788537,118.18149491,127.52,127.49,8.12806081]
[1744821788845,35.38149491,127.51,127.49,8.12806081]
[1744821789342,118.18149491,127.52,127.49,8.12806081]
[1744821789540,35.38149491,127.51,127.49,8.12806081]
[1744821790125,35.38149491,127.51,127.49,0.28432314]
[1744821790523,35.38149491,127.53,127.49,0.28432314]
[1744821790746,118.18149491,127.54,127.51,0.28432314]
[1744821791835,118.18149491,127.54,127.51,8.12674237]
[1744821792045,82.8,127.54,127.51,8.12674237]
[1744821792226,82.8,127.57,127.52,35.52365648]
[1744821792426,118.18149491,127.57,127.54,0.28432314]
[1744821792731,126.02044177,127.57,127.53,12.14]
[1744821792931,35.38149491,127.56,127.54,0.28432314]
[1744821793128,118.18149491,127.57,127.54,0.28432314]
[1744821793331,118.21149491,127.6,127.56,0.14216157]
[1744821793738,35.38149491,127.59,127.56,0.14216157]
[1744821794028,35.38149491,127.59,127.57,0.14216157]
[1744821794436,118.21149491,127.6,127.57,0.14216157]
[1744821794750,118.21149491,127.6,127.58,12.14]
[1744821794751,82.83,127.6,127.58,12.14]
[1744821795249,118.21149491,127.6,127.58,12.14]
[1744821795647,43.21909973,127.59,127.58,12.14]
[1744821796453,43.21909973,127.59,127.54,12.14]
[1744821796651,35.38149491,127.55,127.54,12.14]
[1744821796834,82.8,127.57,127.54,12.14]
[1744821797030,35.38149491,127.55,127.54,12.14]
[1744821799434,35.38149491,127.56,127.54,12.14]
[1744821800757,35.38149491,127.55,127.54,12.14]
[1744821800945,90.63896083,127.57,127.54,12.14]
[1744821801134,35.38149491,127.55,127.54,12.14]
[1744821802336,35.38149491,127.56,127.54,12.14]
[1744821802532,126.02041588,127.57,127.54,12.14]
[1744821802754,35.38149491,127.55,127.54,12.14]
[1744821803158,35.38149491,127.56,127.54,12.14]
[1744821803159,1.6096,127.56,127.54,12.14]
[1744821803343,35.38149491,127.55,127.54,12.14]
[1744821804239,35.38149491,127.56,127.54,12.14]
[1744821804441,35.38149491,127.55,127.54,12.14]
[1744821804644,35.38149491,127.56,127.54,12.14]
[1744821804948,35.38149491,127.55,127.54,12.14]
[1744821805560,35.38149491,127.56,127.54,12.14]
[1744821805951,35.38149491,127.55,127.54,12.14]
[1744821807261,43.22155763,127.55,127.54,12.14]
[1744821807560,35.38149491,127.55,127.54,12.14]
[1744821808168,43.22155763,127.55,127.54,12.14]
[1744821811249,7.8394481,127.56,127.54,12.14]
[1744821811558,35.38149491,127.55,127.54,12.14]
[1744821811967,34.88149491,127.55,127.54,12.14]
[1744821812663,96.81025828,127.57,127.54,12.14]
[1744821812859,35.38149491,127.56,127.54,12.14]
[1744821813457,82.8,127.57,127.55,0.28432314]
[1744821813663,82.83,127.6,127.55,35.80797962]
[1744821813958,118.21149491,127.6,127.55,35.80797962]
[1744821814562,126.04860919,127.6,127.55,35.80797962]
[1744821814763,35.38149491,127.59,127.55,0.42648471]
[1744821815357,90.66711428,127.6,127.57,0.28432314]
[1744821815661,35.38149491,127.59,127.57,0.28432314]
[1744821817178,35.38149491,127.58,127.57,0.28432314]
[1744821817784,82.8,127.57,127.49,19.60899414]
[1744821817954,35.38149491,127.52,127.49,31.38899414]
[1744821818282,35.38149491,127.53,127.5,7.84283727]
[1744821818488,82.8,127.56,127.51,0.28432314]
[1744821818645,35.38149491,127.54,127.5,7.84283727]
[1744821819060,35.38149491,127.54,127.51,0.28432314]
[1744821819262,22.13913067,127.54,127.51,0.28432314]
[1744821819462,22.13913067,127.54,127.51,7.84239911]
[1744821819870,22.13913067,127.54,127.52,0.28432314]
[1744821820268,22.13913067,127.53,127.52,0.28432314]
[1744821820473,22.13913067,127.53,127.49,11.78]
[1744821820760,22.13913067,127.53,127.5,0.14216157]
[1744821820977,22.13913067,127.53,127.5,0.28432314]
[1744821821281,35.42772029,127.53,127.5,0.28432314]
[1744821821480,43.26913452,127.53,127.5,0.28432314]
[1744821821776,35.42772029,127.51,127.5,0.28432314]
[1744821822155,35.42772029,127.51,127.49,11.78]
[1744821822355,35.42772029,127.52,127.49,19.62370097]
[1744821822668,118.22772029,127.54,127.5,0.42648471]
[1744821823686,35.42772029,127.53,127.5,8.26953616]
[1744821825289,118.22772029,127.54,127.5,8.26953616]
[1744821825657,82.8,127.54,127.5,43.69725645]
[1744821825885,118.22772029,127.54,127.5,43.69725645]
[1744821826382,35.42772029,127.53,127.5,8.26953616]
[1744821827006,35.42772029,127.51,127.5,0.28432314]
[1744821827296,35.42772029,127.51,127.49,11.78]
[1744821827463,35.42772029,127.5,127.49,11.78]
[1744821827862,43.27085754,127.5,127.49,12.06432314]
[1744821828097,43.27085754,127.5,127.49,11.78]
[1744821828284,43.27085754,127.5,127.48,0.063]
[1744821828285,78.69857783,127.5,127.48,0.063]
[1744821828474,61.42772029,127.49,127.48,0.063]
[1744821829394,35.42772029,127.49,127.48,0.063]
[1744821829796,43.27147274,127.49,127.48,0.063]
[1744821831690,35.42772029,127.49,127.48,0.063]
[1744821833170,43.27147274,127.49,127.48,0.063]
[1744821834372,35.42772029,127.49,127.48,0.063]
[1744821834576,1.6122,127.52,127.48,0.063]
[1744821834767,35.42772029,127.5,127.48,0.063]
[1744821834968,35.42772029,127.49,127.48,0.063]
[1744821836077,43.27147274,127.49,127.48,0.063]
[1744821837292,26.0,127.52,127.48,0.063]
[1744821837584,35.42772029,127.5,127.48,0.063]
[1744821837783,13.85887505,127.54,127.48,0.34732314]
[1744821838027,1.5912,127.55,127.51,35.854205]
[1744821838028,35.42772029,127.55,127.51,35.854205]
[1744821838166,14.3888742,127.58,127.53,35.854205]
[1744821838369,43.26629449,127.58,127.53,35.854205]
[1744821838594,35.42772029,127.54,127.53,0.28432314]
[1744821839276,35.42772029,127.55,127.53,0.28432314]
[1744821840379,35.42772029,127.54,127.53,0.28432314]
[1744821840580,61.42772029,127.54,127.49,0.14216157]
[1744821840796,35.42772029,127.5,127.49,0.14216157]
[1744821840994,26.0,127.54,127.49,35.854205]
[1744821841196,108.8,127.56,127.51,0.42648471]
[1744821841390,35.42772029,127.52,127.51,0.28432314]
[1744821842197,35.42772029,127.54,127.51,0.28432314]
[1744821842387,118.22772029,127.55,127.51,0.28432314]
[1744821842590,118.22772029,127.55,127.51,35.71204343]
[1744821842798,118.22772029,127.55,127.51,0.28432314]
[1744821843004,118.22772029,127.55,127.51,35.71204343]
[1744821843579,118.22772029,127.55,127.51,8.12684529]
[1744821844211,35.42772029,127.53,127.5,8.26933791]
[1744821844500,35.42772029,127.52,127.5,8.26933791]
[1744821844892,35.42772029,127.52,127.5,0.28432314]
[1744821845405,22.14492453,127.52,127.5,0.28432314]
[1744821846918,26.0,127.5,127.48,0.063]
[1744821847082,104.94492453,127.49,127.48,0.063]
[1744821847282,118.26061675,127.49,127.48,0.063]
[1744821848790,126.1043692,127.49,127.48,0.063]
[1744821851312,82.8,127.49,127.48,0.063]
[1744821851915,126.1043692,127.49,127.48,0.063]
[1744821854618,82.8,127.49,127.48,0.063]
[1744821854925,82.8,127.51,127.48,0.063]
[1744821855123,124.87871675,127.55,127.51,0.42648471]
[1744821855299,82.8,127.55,127.52,0.28432314]
[1744821855618,82.8,127.55,127.52,0.42648471]
[1744821855801,82.8,127.55,127.53,35.46061675]
[1744821856000,82.8,127.55,127.54,11.78]
[1744821856199,82.8,127.57,127.55,0.28432314]
[1744821856395,82.8,127.57,127.55,0.42648471]
[1744821856592,82.8,127.57,127.55,8.26642005]
[1744821856807,82.8,127.57,127.55,0.28432314]
[1744821857137,118.26061675,127.57,127.55,0.28432314]
[1744821858069,118.26061675,127.57,127.54,11.78]
[1744821858070,35.46061675,127.56,127.54,11.78]
[1744821858918,82.8,127.57,127.55,0.28432314]
[1744821859440,82.8,127.57,127.55,35.88710146]
[1744821860311,118.26061675,127.57,127.55,0.28432314]
[1744821860741,82.8,127.57,127.55,0.28432314]
[1744821861941,118.26061675,127.57,127.55,0.28432314]
[1744821862435,126.09949702,127.57,127.55,0.28432314]
[1744821863023,82.8,127.57,127.55,0.28432314]
[1744821864048,82.8,127.57,127.55,8.12427038]
[1744821864212,82.8,127.59,127.55,8.12427038]
[1744821864419,118.26061675,127.59,127.55,8.12427038]
[1744821864621,35.46061675,127.58,127.55,8.12427038]
[1744821865949,82.8,127.59,127.55,8.12427038]
[1744821866320,118.26061675,127.59,127.55,8.12427038]
[1744821868143,82.8,127.59,127.56,0.14216157]
[1744821868850,82.8,127.59,127.56,7.83940583]
[1744821869142,104.9192196,127.59,127.56,7.83940583]
[1744821869723,82.8,127.59,127.57,0.42648471]
[1744821870124,82.8,127.59,127.57,22.54570431]
[1744821870346,82.8,127.59,127.57,0.42648471]
[1744821870648,104.9192196,127.59,127.57,0.28432314]
[1744821871950,22.1192196,127.58,127.56,0.28432314]
[1744821872156,104.9192196,127.59,127.56,8.12374988]
[1744821872653,82.8,127.59,127.56,30.24296948]
[1744821872834,0.03,127.6,127.59,0.28432314]
[1744821873037,22.1492196,127.6,127.59,0.28432314]
[1744821873550,22.1492196,127.6,127.57,7.83853395]
[1744821873726,0.03,127.6,127.58,0.28432314]
[1744821874229,22.1192196,127.59,127.54,33.8992196]
[1744821874432,22.1192196,127.58,127.55,8.26654743]
[1744821875056,104.9192196,127.59,127.55,8.26654743]
[1744821875247,104.9192196,127.58,127.55,0.28432314]
[1744821875455,104.9192196,127.58,127.54,19.62040065]
[1744821875659,82.8,127.58,127.55,0.28432314]
[1744821876040,82.8,127.58,127.55,22.54570431]
[1744821876475,82.8,127.58,127.55,0.42648471]
[1744821876850,82.8,127.58,127.55,22.54570431]
[1744821877246,82.8,127.58,127.55,8.26627997]
[1744821877653,82.8,127.58,127.55,30.38549957]
[1744821877868,0.03,127.6,127.57,22.1192196]
[1744821878051,0.03,127.6,127.58,0.28432314]
[1744821878247,29.98623405,127.6,127.58,0.28432314]
[1744821878542,22.1492196,127.6,127.58,0.28432314]
[1744821879391,0.03,127.6,127.58,0.28432314]
[1744821879668,0.03,127.6,127.59,34.32570431]
[1744821880573,0.03,127.6,127.59,12.06432314]
[1744821880746,22.1492196,127.6,127.59,12.06432314]
[1744821880942,104.9492196,127.6,127.59,11.92216157]
[1744821881168,112.78621019,127.6,127.59,11.78]
[1744821881557,104.9492196,127.6,127.59,11.78]
[1744821882455,112.78621019,127.6,127.59,11.78]
[1744821882645,29.98621019,127.6,127.57,0.28432314]
[1744821882848,22.1192196,127.58,127.57,0.28432314]
[1744821883787,29.95713291,127.59,127.57,0.28432314]
[1744821884266,22.1192196,127.59,127.57,0.28432314]
[1744821884466,29.95685968,127.59,127.57,0.28432314]
[1744821885086,22.1192196,127.58,127.57,0.28432314]
[1744821887174,112.75697344,127.59,127.57,0.28432314]
[1744821887393,82.8,127.59,127.58,0.28432314]
[1744821887563,82.8,127.59,127.58,22.54570431]
[1744821887760,82.8,127.59,127.58,0.42648471]
[1744821887960,82.8,127.59,127.58,0.28432314]
[1744821889692,82.8,127.59,127.57,7.83842318]
[1744821889693,82.8,127.59,127.57,0.42648471]
[1744821890171,82.8,127.59,127.57,8.1230847]
[1744821893004,0.03,127.6,127.57,8.1230847]
[1744821895099,0.03,127.6,127.58,22.26138117]
[1744821896104,0.03,127.6,127.58,0.14216157]
[1744821896483,22.1492196,127.6,127.57,8.1230847]
[1744821896798,22.1492196,127.6,127.56,0.14216157]
[1744821896799,22.1192196,127.59,127.56,8.26560563]
[1744821897182,29.9863298,127.6,127.56,8.26560563]
[1744821897768,29.9863298,127.6,127.56,7.26560563]
[1744821897972,22.1492196,127.6,127.56,7.26560563]
[1744821898376,0.03,127.6,127.56,29.38482523]
[1744821898576,0.03,127.6,127.58,0.28432314]
[1744821898782,0.03,127.6,127.58,22.40354274]
[1744821899691,0.03,127.6,127.58,0.28432314]
[1744821899998,0.03,127.6,127.59,8.26408953]
[1744821900392,0.03,127.6,127.59,0.28432314]
[1744821900703,0.03,127.6,127.59,0.42648471]
[1744821901304,0.03,127.6,127.59,41.19535317]
[1744821901485,0.03,127.6,127.59,42.85335317]
[1744821901922,0.03,127.6,127.59,24.20370431]
[1744821902108,0.03,127.6,127.59,0.28432314]
[1744821903281,0.03,127.6,127.59,8.12192796]
[1744821903903,0.03,127.6,127.59,30.24114756]
[1744821904107,0.03,127.6,127.59,49.03295799]
[1744821905810,0.03,127.61,127.6,19.07613357]
[1744821906108,1e-08,127.61,127.6,62.33954376]
[1744821906279,1e-08,127.63,127.62,45.07613357]
[1744821906484,1e-08,127.63,127.62,89.31457277]
[1744821906923,1e-08,127.63,127.62,45.07613357]
[1744821907208,1e-08,127.63,127.6,19.59699059]
[1744821907507,1e-08,127.63,127.6,41.71621019]
[1744821907683,1e-08,127.63,127.61,0.14216157]
[1744821907884,1e-08,127.63,127.61,0.28432314]
[1744821908081,1e-08,127.63,127.62,7.83576241]
[1744821908286,1e-08,127.63,127.62,30.38146672]
[1744821909201,1e-08,127.63,127.62,0.28432314]
[1744821909391,22.11921961,127.63,127.6,19.59668937]
[1744821909599,1e-08,127.63,127.6,19.59668937]
[1744821909791,1e-08,127.63,127.61,0.28432314]
[1744821909990,22.11921961,127.63,127.61,0.28432314]
[1744821910189,1e-08,127.63,127.61,8.12065804]
[1744821910514,1e-08,127.63,127.62,22.54570431]
[1744821911017,22.11921961,127.63,127.6,19.73883039]
[1744821911187,1e-08,127.63,127.6,19.73883039]
[1744821911386,1e-08,127.63,127.6,41.85804999]
[1744821911806,1e-08,127.63,127.61,0.14216157]
[1744821912012,1e-08,127.63,127.61,0.28432314]
[1744821912191,1e-08,127.63,127.61,8.12044742]
[1744821913315,1e-08,127.63,127.61,30.23966702]
[1744821913630,1e-08,127.63,127.62,22.54570431]
[1744821914433,1e-08,127.63,127.62,30.38146672]
[1744821914731,22.11921961,127.63,127.62,0.14216157]
[1744821915029,1e-08,127.63,127.62,0.14216157]
[1744821915329,1e-08,127.63,127.62,30.23930515]
[1744821915528,1e-08,127.63,127.62,30.38146672]
[1744821915840,1e-08,127.63,127.62,8.26224712]
[1744821916202,1e-08,127.63,127.62,0.28432314]
[1744821916401,1e-08,127.63,127.6,11.76]
[1744821916604,1e-08,127.63,127.6,19.59655521]
[1744821916805,1e-08,127.63,127.61,0.28432314]
[1744821917533,1e-08,127.63,127.61,0.42648471]
[1744821917723,1e-08,127.63,127.61,22.54570431]
[1744821918529,1e-08,127.63,127.62,7.83576241]
[1744821919110,1e-08,127.63,127.62,30.38146672]
[1744821919415,1e-08,127.63,127.62,22.40252115]
[1744821919615,1e-08,127.63,127.62,97.61326613]
[1744821920334,1e-08,127.63,127.62,125.16786613]
[1744821921119,1e-08,127.63,127.62,98.63452726]
[1744821924018,1e-08,127.63,127.62,76.55051162]
[1744821925026,1e-08,127.63,127.62,74.71158848]
[1744821925831,1e-08,127.63,127.62,74.99591162]
[1744821927236,1e-08,127.63,127.62,97.07992726]
[1744821928828,1e-08,127.63,127.62,74.99591162]
[1744821929318,1e-08,127.63,127.62,97.07992726]
[1744821929643,1e-08,127.63,127.62,74.99591162]
[1744821929945,1e-08,127.63,127.62,97.07992726]
[1744821930523,1e-08,127.63,127.62,74.99591162]
[1744821933247,1e-08,127.63,127.62,97.07992726]
[1744821933430,1e-08,127.64,127.63,19.07613357]
[1744821933638,1e-08,127.64,127.63,22.51050035]
[1744821933826,1e-08,127.64,127.63,48.99529768]
[1744821934022,1e-08,127.64,127.63,8.26163318]
[1744821934231,1e-08,127.64,127.63,0.28432314]
[1744821934437,1e-08,127.64,127.62,7.83549054]
[1744821934748,1e-08,127.64,127.63,0.42648471]
[1744821934952,104.88401565,127.64,127.6,11.76]
[1744821935126,22.08401564,127.62,127.6,11.76]
[1744821935314,22.08401564,127.62,127.61,0.28432314]
[1744821935521,104.88401564,127.63,127.6,19.59697951]
[1744821935927,104.88401564,127.63,127.61,0.28432314]
[1744821936127,82.8,127.63,127.62,22.08401564]
[1744821936348,1e-08,127.64,127.63,0.42648471]
[1744821937157,1e-08,127.64,127.63,12.18648471]
[1744821938031,1e-08,127.64,127.63,20.02163318]
[1744821938243,1e-08,127.64,127.63,42.10564882]
[1744821938556,1e-08,127.64,127.63,60.75529768]
[1744821939158,1e-08,127.64,127.63,11.76]
[1744821939480,104.88401565,127.64,127.63,11.76]
[1744821939671,48.08401565,127.64,127.63,11.76]
[1744821939960,48.08401565,127.64,127.59,256.16]
[1744821940158,22.08401564,127.62,127.59,256.16]
[1744821940476,22.08401564,127.6,127.59,11.76]
[1744821940645,112.79921564,127.61,127.59,11.76]
[1744821940842,90.7152,127.61,127.59,11.76]
[1744821941557,112.79921564,127.61,127.59,11.76]
[1744821941765,22.08401564,127.6,127.59,12.04432314]
[1744821941960,90.7152,127.61,127.59,12.04432314]
[1744821942675,98.55161439,127.61,127.59,12.04432314]
[1744821942848,22.08401564,127.6,127.59,11.76]
[1744821943462,98.55161439,127.61,127.59,11.76]
[1744821943463,120.63563003,127.61,127.59,11.76]
[1744821945680,82.8,127.6,127.59,11.76]
[1744821946483,112.72100623,127.6,127.57,0.28432314]
[1744821946650,22.08401564,127.58,127.56,0.28432314]
[1744821946856,104.88401564,127.57,127.55,11.823]
[1744821947057,22.08401564,127.56,127.55,11.823]
[1744821947557,104.88401564,127.57,127.55,11.823]
[1744821947758,82.8,127.57,127.55,11.823]
[1744821947975,22.08401564,127.56,127.55,12.10732314]
[1744821948563,22.08401564,127.56,127.55,11.96516157]
[1744821948775,22.08401564,127.56,127.55,12.10732314]
[1744821948974,29.92346374,127.56,127.55,11.823]
[1744821949173,22.08401564,127.56,127.55,11.823]
[1744821949858,29.92346374,127.56,127.55,11.823]
[1744821950164,37.85346374,127.56,127.55,0.063]
[1744821950482,30.01401564,127.56,127.55,0.063]
[1744821950886,7.93,127.56,127.55,0.063]
[1744821951098,37.85346374,127.56,127.55,0.063]
[1744821951699,59.93747938,127.56,127.55,0.063]
[1744821953193,78.58712824,127.56,127.55,0.063]
[1744821953382,78.58712824,127.56,127.53,1e-08]
[1744821953383,44.64964886,127.54,127.53,1e-08]
[1744821953592,97.67784171,127.54,127.49,0.063]
[1744821953903,70.16803128,127.5,127.49,0.063]
[1744821954685,26.0,127.46,127.45,0.063]
[1744821954892,48.08401564,127.46,127.45,0.063]
[1744821955699,26.0,127.46,127.45,0.063]
[1744821955911,22.08401564,127.46,127.45,0.063]
[1744821956583,7.9674,127.5,127.45,29.99322049]
[1744821956784,23.72931564,127.53,127.48,22.08401564]
[1744821957015,23.72931564,127.53,127.49,0.28432314]
[1744821957212,22.08401564,127.51,127.49,0.28432314]
[1744821957706,22.08401564,127.5,127.48,11.74]
[1744821957896,22.08401564,127.49,127.48,11.74]
[1744821958082,48.08401564,127.5,127.48,11.74]
[1744821958581,22.08401564,127.49,127.46,0.28432314]
[1744821958784,22.08401564,127.48,127.46,0.28432314]
[1744821958993,22.08401564,127.47,127.45,0.20516157]
[1744821959185,35.46119237,127.47,127.45,0.20516157]
[1744821959590,35.46119237,127.48,127.45,8.0513307]
[1744821959914,82.8,127.49,127.46,0.14216157]
[1744821960088,118.26119237,127.49,127.46,0.14216157]
[1744821960688,118.26119237,127.49,127.47,0.14216157]
[1744821961012,82.8,127.49,127.47,0.14216157]
[1744821961513,118.26119237,127.49,127.47,0.14216157]
[1744821961695,82.8,127.49,127.47,0.14216157]
[1744821962685,82.8,127.49,127.47,35.60335394]
[1744821962906,82.8,127.49,127.47,7.84485591]
[1744821963383,82.8,127.49,127.47,43.30604828]
[1744821964192,118.26119237,127.48,127.45,0.063]
[1744821964406,35.46119237,127.46,127.45,0.063]
[1744821965195,44.80879098,127.46,127.45,0.063]
[1744821968721,26.0,127.47,127.45,0.063]
[1744821968903,35.46119237,127.47,127.45,0.063]
[1744821969102,37.07749237,127.5,127.46,0.42648471]
[1744821969103,1.6163,127.5,127.46,0.42648471]
[1744821969313,35.46119237,127.48,127.46,0.28432314]
[1744821969500,35.46119237,127.47,127.45,11.823]
[1744821969894,35.46119237,127.49,127.46,0.28432314]
[1744821970110,35.46119237,127.5,127.46,35.74551551]
[1744821970316,35.46119237,127.51,127.46,35.74551551]
[1744821970622,35.46119237,127.51,127.48,0.28432314]
[1744821970803,43.3027915,127.53,127.48,35.74551551]
[1744821971120,35.46119237,127.52,127.48,35.74551551]
[1744821971617,35.46119237,127.51,127.48,0.28432314]
[1744821971826,35.46119237,127.5,127.48,0.28432314]
[1744821972518,35.46119237,127.49,127.48,0.28432314]
[1744821972697,35.46119237,127.49,127.46,0.28432314]
[1744821972900,35.46119237,127.52,127.47,35.46119237]
[1744821973398,35.46119237,127.51,127.46,35.88767708]
[1744821973597,7.84129224,127.53,127.47,35.46119237]
[1744821973598,35.46119237,127.52,127.47,35.46119237]
[1744821973815,82.8,127.54,127.5,35.74551551]
[1744821974114,35.49119237,127.55,127.5,11.76]
[1744821974115,35.46119237,127.52,127.5,11.76]
[1744821974311,35.46119237,127.51,127.5,11.76]
[1744821974906,82.8,127.5,127.46,11.76]
[1744821975220,35.46119237,127.48,127.46,11.76]
[1744821975391,82.8,127.47,127.46,9.54432314]
[1744821975790,82.8,127.47,127.46,9.26]
[1744821976523,82.8,127.47,127.46,9.54432314]
[1744821976705,69.3061755,127.47,127.45,0.063]
[1744821976906,153.72238474,127.46,127.45,0.063]
[1744821977425,26.0,127.44,127.43,0.063]
[1744821977608,96.92238474,127.44,127.43,0.063]
[1744821977814,61.46119237,127.44,127.43,0.063]
[1744821978427,96.92238474,127.44,127.43,0.063]
[1744821978827,104.76921462,127.44,127.43,0.063]
[1744821979997,61.46119237,127.44,127.43,0.063]
[1744821980518,35.46119237,127.44,127.43,0.063]
[1744821981911,43.30802225,127.44,127.43,0.063]
[1744821982226,35.46119237,127.44,127.43,0.063]
[1744821982420,82.8,127.48,127.43,0.063]
[1744821982718,82.8,127.48,127.46,0.28432314]
[1744821982923,82.8,127.47,127.44,0.28432314]
[1744821984114,82.8,127.47,127.44,43.59183424]
[1744821984316,82.8,127.47,127.45,35.60335394]
[1744821984622,82.8,127.49,127.47,0.28432314]
[1744821984920,118.26119237,127.49,127.45,0.28432314]
[1744821985223,35.46119237,127.48,127.45,0.28432314]
[1744821985525,35.46119237,127.47,127.45,0.28432314]
[1744821985824,26.0,127.44,127.43,11.823]
[1744821986024,111.24241462,127.44,127.43,0.063]
[1744821986538,75.78122225,127.44,127.43,0.063]
[1744821986718,111.24241462,127.44,127.43,0.063]
[1744821988332,75.78122225,127.44,127.43,0.063]
[1744821990015,111.24241462,127.44,127.43,0.063]
[1744821990925,75.78122225,127.44,127.43,0.063]
[1744821991125,111.24241462,127.44,127.43,0.063]
[1744821991333,7.84592178,127.46,127.43,0.063]
[1744821991633,43.30711415,127.46,127.43,0.063]
[1744821992412,35.46119237,127.44,127.43,0.063]
[1744821993139,35.46119237,127.45,127.43,0.063]
[1744821993324,35.46119237,127.44,127.43,0.063]
[1744821993529,96.92238474,127.44,127.43,0.063]
[1744821993836,61.46119237,127.44,127.43,0.063]
[1744821994037,46.10708982,127.47,127.43,0.063]
[1744821994038,35.46119237,127.45,127.43,0.063]
[1744821994214,35.46119237,127.46,127.43,0.063]
[1744821994417,35.46119237,127.45,127.43,0.063]
[1744821995226,35.46119237,127.44,127.43,0.063]
[1744821996521,35.46119237,127.45,127.43,0.063]
[1744821996720,35.46119237,127.46,127.43,12.10732314]
[1744821997042,35.46119237,127.48,127.45,0.28432314]
[1744821997743,35.46119237,127.46,127.44,0.28432314]
[1744821998323,35.46119237,127.45,127.43,11.823]
[1744821998525,35.46119237,127.44,127.43,11.823]
[1744821999641,35.46119237,127.44,127.43,0.063]
[1744822000542,43.30802225,127.44,127.43,0.063]
[1744822001628,35.46119237,127.44,127.43,0.063]
[1744822002844,43.30802225,127.44,127.43,0.063]
[1744822005464,35.46119237,127.44,127.43,0.063]
[1744822005642,43.30802225,127.44,127.43,0.063]
[1744822006167,67.06577551,127.49,127.43,35.95067708]
[1744822006168,7.84436774,127.48,127.43,35.95067708]
[1744822006342,7.84407033,127.49,127.45,0.28432314]
[1744822006546,43.3052627,127.49,127.45,0.28432314]
[1744822006841,43.30568806,127.48,127.45,0.28432314]
[1744822007156,0.03,127.52,127.46,35.46119237]
[1744822007358,0.03,127.52,127.48,0.28432314]
[1744822007545,35.46119237,127.51,127.48,0.28432314]
[1744822007942,35.46119237,127.5,127.48,0.28432314]
[1744822008549,35.46119237,127.51,127.48,0.28432314]
[1744822009660,7.87232056,127.52,127.47,8.12923602]
[1744822009661,35.46119237,127.5,127.47,8.12923602]
[1744822009961,7.87220604,127.52,127.47,8.12923602]
[1744822009962,35.46119237,127.51,127.47,8.12923602]
[1744822010161,35.46119237,127.51,127.47,43.59042839]
[1744822010841,43.33339841,127.52,127.47,43.59042839]
[1744822011464,35.46119237,127.51,127.47,43.59042839]
[1744822012361,35.49119237,127.52,127.47,43.59042839]
[1744822012567,82.83,127.52,127.5,0.28432314]
[1744822012761,0.03,127.52,127.51,47.48551551]
[1744822012961,35.49119237,127.52,127.51,12.02432314]
[1744822013268,0.03,127.52,127.51,12.02432314]
[1744822014667,0.03,127.52,127.51,55.47019923]
[1744822015040,0.03,127.52,127.51,74.11984809]
[1744822015661,0.03,127.52,127.51,55.47019923]
[1744822016872,0.03,127.52,127.51,12.16648471]
[1744822017064,0.03,127.52,127.51,55.47019923]
[1744822018261,0.03,127.52,127.51,64.65865572]
[1744822018573,0.03,127.52,127.51,100.11984809]
[1744822020777,0.03,127.55,127.54,82.05312594]
[1744822021077,0.03,127.55,127.54,89.89380337]
[1744822023761,0.03,127.55,127.54,44.95983137]
[1744822024178,0.03,127.55,127.54,45.10199294]